fUST/lending_fUST_20250613
["ID","MTS","AMOUNT","RATE_DAILY","PERIOD"]
[365523180,1749744636987,-1200.0,0.00022768,2]
[365523181,1749744636997,-2938.92270128,0.00022768,2]
[365523182,1749744637006,-1200.0,0.00022768,2]
[365523183,1749744637016,-1200.0,0.00022768,2]
[365523184,1749744637025,-1200.0,0.00022768,2]
[365523185,1749744637035,-1200.0,0.00022768,2]
[365523186,1749744637045,-1200.0,0.00022768,2]
[365523187,1749744637055,-1200.0,0.00022768,2]
[365523188,1749744637064,-1200.0,0.00022768,2]
[365523189,1749744637074,-1133.19392142,0.00022768,2]
[365523190,1749744637083,-1000.0,0.0002278,2]
[365523191,1749744637092,-160.0,0.00022816,2]
[365523192,1749744637101,-5901.84,0.0002283,2]
[365523193,1749744637111,-2777.62823059,0.00022831,8]
[365523194,1749744637120,-247.364,0.00022859,2]
[365523195,1749744637129,-250.0,0.00022859,2]
[365523196,1749744637138,-152.35,0.00022859,2]
[365523197,1749744637147,-235.761,0.00022859,2]
[365523198,1749744637157,-963.0,0.00022859,2]
[365523199,1749744637166,-653.0,0.00022859,2]
[365523200,1749744637176,-2160.0,0.00022859,2]
[365523201,1749744637186,-5000.0,0.00022945,2]
[365523202,1749744637196,-1617.11,0.00023,2]
[365523203,1749744637205,-952.28,0.00023,7]
[365523204,1749744637215,-196.75563594,0.00023003,2]
[365523205,1749744637224,-2777.62823059,0.00023003,8]
[365523206,1749744637234,-151.0,0.00023011,7]
[365523207,1749744637243,-5901.84,0.00023012,2]
[365523208,1749744637254,-460.0,0.00023013,4]
[365523209,1749744637263,-507.55,0.00023013,2]
[365523210,1749744637272,-460.0,0.00023013,4]
[365523211,1749744637282,-976.0,0.00023013,4]
[365523212,1749744637291,-560.7,0.00023013,4]
[365523213,1749744637300,-759.4,0.00023013,4]
[365523214,1749744637310,-561.64,0.00023013,4]
[365523215,1749744637319,-460.0,0.00023013,4]
[365523216,1749744637329,-1156.58,0.00023013,4]
[365523217,1749744637338,-460.0,0.00023013,4]
[365523219,1749744637348,-188.6,0.00023013,4]
[365523220,1749744637357,-460.0,0.00023013,4]
[365523221,1749744637367,-460.0,0.00023013,4]
[365523222,1749744637377,-952.45,0.00023013,4]
[365523223,1749744637387,-1055.74,0.00023013,4]
[365523224,1749744637397,-519.42,0.00023013,4]
[365523225,1749744637406,-964.7,0.00023013,4]
[365523226,1749744637416,-958.63,0.00023013,4]
[365523227,1749744637426,-1992.03633966,0.00023022,2]
[365523228,1749744637435,-800.0,0.00023087,2]
[365523229,1749744637444,-152.04435926,0.00023107,2]
[365523230,1749744637454,-1500.0,0.00023159,2]
[365523231,1749744637463,-2777.62823059,0.00023176,8]
[365523232,1749744637472,-2234.84,0.00023237,2]
[365523233,1749744637482,-5901.84,0.00023286,2]
[365523234,1749744637492,-460.0,0.00023287,4]
[365523235,1749744637503,-507.55,0.00023287,2]
[365523236,1749744637512,-460.0,0.00023287,4]
[365523237,1749744637522,-976.0,0.00023287,4]
[365523238,1749744637532,-560.7,0.00023287,4]
[365523239,1749744637542,-759.4,0.00023287,4]
[365523240,1749744637553,-460.0,0.00023287,4]
[365523241,1749744637562,-1156.58,0.00023287,4]
[365523242,1749744637572,-460.0,0.00023287,4]
[365523243,1749744637581,-460.0,0.00023287,4]
[365523244,1749744637691,-460.0,0.00023287,4]
[365523245,1749744637700,-952.45,0.00023287,4]
[365523246,1749744637710,-1055.74,0.00023287,4]
[365523247,1749744637719,-519.42,0.00023287,4]
[365523248,1749744637728,-964.7,0.00023287,4]
[365523249,1749744637738,-958.63,0.00023287,4]
[365523250,1749744637751,-5000.0,0.00023316,2]
[365523251,1749744637761,-2777.62823059,0.00023348,9]
[365523252,1749744637770,-3000.0,0.00023382,3]
[365523253,1749744637779,-835.15920933,0.00023414,2]
[365523254,1749744637789,-3692.92,0.00023426,3]
[365523255,1749744637799,-2413.468194,0.00023453,3]
[365523256,1749744637809,-835.15920933,0.000235,3]
[365523257,1749744637819,-213.20212768,0.000235,3]
[365523258,1749744637829,-160.0,0.000235,3]
[365523259,1749744637839,-2777.62823059,0.00023521,9]
[365523260,1749744637849,-5901.84,0.0002356,2]
[365523261,1749744637858,-460.0,0.00023561,4]
[365523262,1749744637867,-507.55,0.00023561,2]
[365523263,1749744637877,-460.0,0.00023561,4]
[365523264,1749744637886,-976.0,0.00023561,4]
[365523265,1749744637896,-560.7,0.00023561,4]
[365523266,1749744637906,-759.4,0.00023561,4]
[365523267,1749744637916,-460.0,0.00023561,4]
[365523268,1749744637926,-1156.58,0.00023561,4]
[365523269,1749744637936,-460.0,0.00023561,4]
[365523270,1749744637946,-460.0,0.00023561,4]
[365523271,1749744637955,-460.0,0.00023561,4]
[365523272,1749744637964,-952.45,0.00023561,4]
[365523273,1749744637974,-1055.74,0.00023561,4]
[365523275,1749744637983,-519.42,0.00023561,4]
[365523276,1749744637993,-964.7,0.00023561,4]
[365523277,1749744638004,-958.63,0.00023561,4]
[365523278,1749744638013,-200.0,0.0002358,8]
[365523279,1749744638023,-4587.67,0.000236,7]
[365523280,1749744638032,-227.0,0.00023611,2]
[365523281,1749744638042,-227.0,0.00023641,2]
[365523282,1749744638051,-168.0,0.00023659,2]
[365523284,1749744638061,-2777.62823059,0.00023693,9]
[365523285,1749744638071,-151.0,0.000237,6]
[365523286,1749744638080,-2000.0,0.00023707,2]
[365523287,1749744638090,-2200.0,0.00023766,2]
[365523288,1749744638099,-2015.82536927,0.0002378,2]
[365523289,1749744638108,-203.24436406,0.00023787,2]
[365523290,1749744638118,-10000.0,0.000238,2]
[365523291,1749744638127,-5901.84,0.00023807,2]
[365523292,1749744638137,-5901.84,0.00023807,2]
[365523293,1749744638146,-5901.84,0.00023807,2]
[365523294,1749744638156,-5901.84,0.00023807,2]
[365523295,1749744638166,-5901.85,0.00023807,2]
[365523296,1749744638176,-6663.02080343,0.00023808,3]
[365523297,1749744638185,-800.0,0.00023815,2]
[365523298,1749744638194,-460.0,0.00023835,4]
[365523299,1749744638204,-507.55,0.00023835,2]
[365523300,1749744638214,-460.0,0.00023835,4]
[365523301,1749744638223,-976.0,0.00023835,4]
[365523302,1749744638233,-560.7,0.00023835,4]
[365523303,1749744638242,-759.4,0.00023835,4]
[365523304,1749744638254,-460.0,0.00023835,4]
[365523305,1749744638264,-1156.58,0.00023835,4]
[365523306,1749744638274,-460.0,0.00023835,4]
[365523307,1749744638283,-460.0,0.00023835,4]
[365523308,1749744638293,-460.0,0.00023835,4]
[365523309,1749744638303,-952.45,0.00023835,4]
[365523310,1749744638314,-1055.74,0.00023835,4]
[365523311,1749744638324,-519.42,0.00023835,4]
[365523312,1749744638333,-964.7,0.00023835,4]
[365523313,1749744638343,-958.63,0.00023835,4]
[365523314,1749744638353,-321.94390946,0.0002384,2]
[365523315,1749744638363,-5000.0,0.00023864,2]
[365523316,1749744638372,-279.07466187,0.00023864,7]
[365523317,1749744638382,-2777.62823059,0.00023866,10]
[365523318,1749744638391,-165.2863958,0.00023899,4]
[365523319,1749744638401,-165.2863958,0.00023899,4]
[365523320,1749744638410,-165.2863958,0.00023899,4]
[365523321,1749744638420,-165.2863958,0.00023899,4]
[365523322,1749744638430,-165.2863958,0.00023899,4]
[365523323,1749744638439,-165.2863958,0.00023899,4]
[365523324,1749744638451,-165.2863958,0.00023899,4]
[365523325,1749744638460,-165.2863958,0.00023899,4]
[365523326,1749744638470,-165.2863958,0.00023899,4]
[365523327,1749744638480,-165.2863958,0.00023899,4]
[365523328,1749744638489,-165.2863958,0.00023899,4]
[365523329,1749744638501,-165.2863958,0.00023899,4]
[365523330,1749744638510,-165.2863958,0.00023899,4]
[365523331,1749744638519,-165.2863958,0.00023899,4]
[365523332,1749744638528,-165.2863958,0.00023899,4]
[365523333,1749744638538,-165.2863958,0.00023899,4]
[365523334,1749744638548,-165.2863958,0.00023899,4]
[365523335,1749744638557,-165.2863958,0.00023899,4]
[365523336,1749744638567,-165.2863958,0.00023899,4]
[365523337,1749744638577,-165.28,0.00023899,4]
[365523338,1749744638586,-385.66825688,0.00023899,4]
[365523339,1749744638595,-385.66825688,0.00023899,4]
[365523340,1749744638604,-385.66825688,0.00023899,4]
[365523341,1749744638614,-385.66825688,0.00023899,4]
[365523343,1749744638623,-385.66825688,0.00023899,4]
[365523344,1749744638632,-385.66825688,0.00023899,4]
[365523345,1749744638642,-385.66825688,0.00023899,4]
[365523346,1749744638651,-385.66825688,0.00023899,4]
[365523347,1749744638660,-385.66825688,0.00023899,4]
[365523348,1749744638670,-385.66825688,0.00023899,4]
[365523349,1749744638679,-385.66825688,0.00023899,4]
[365523350,1749744638689,-385.66825688,0.00023899,4]
[365523351,1749744638698,-385.66825688,0.00023899,4]
[365523352,1749744638707,-385.66825688,0.00023899,4]
[365523353,1749744638717,-385.66825688,0.00023899,4]
[365523354,1749744638726,-385.66825688,0.00023899,4]
[365523355,1749744638735,-385.66825688,0.00023899,4]
[365523356,1749744638747,-385.66825688,0.00023899,4]
[365523357,1749744638757,-385.66825688,0.00023899,4]
[365523358,1749744638766,-239.76,0.00023899,4]
[365523359,1749744638775,-186.48691922,0.00023899,4]
[365523360,1749744638785,-186.48691922,0.00023899,4]
[365523361,1749744638795,-7681.4257136,0.00023899,2]
[365523362,1749744638804,-168.16966624,0.00023899,2]
[365523363,1749744638814,-2000.0,0.000239,2]
[365523364,1749744638823,-2000.0,0.000239,2]
[365523365,1749744638833,-385.66,0.000239,4]
[365523366,1749744638842,-186.48,0.000239,4]
[365523367,1749744638852,-160.0,0.000239,3]
[365523368,1749744638861,-151.0,0.000239,7]
[365523369,1749744638871,-262.750998,0.000239,7]
[365523370,1749744638880,-1517.476952,0.000239,2]
[365523371,1749744638890,-1517.476952,0.000239,2]
[365523372,1749744638900,-424.26423502,0.000239,3]
[365523373,1749744638910,-160.0,0.000239,3]
[365523374,1749744638919,-229.7508257,0.000239,3]
[365523375,1749744638928,-160.0,0.000239,3]
[365523376,1749744638938,-581.557841,0.000239,7]
[365523377,1749744638948,-581.557841,0.000239,7]
[365523378,1749744638957,-800.0,0.00023908,2]
[365523379,1749744638967,-113223.31078969,0.0002391,7]
[365523380,1749744638976,-227.0,0.00023913,2]
[365523381,1749744638986,-823.0,0.00023915,2]
[365523382,1749744638995,-500.0,0.0002393,2]
[365523383,1749744639006,-500.0,0.0002393,2]
[365523384,1749744639015,-500.0,0.0002393,2]
[365523385,1749744639024,-500.0,0.0002393,2]
[365523386,1749744639034,-500.0,0.0002393,2]
[365523387,1749744639044,-1802.40033724,0.00023932,2]
[365523388,1749744639054,-5000.0,0.00023932,2]
[365523389,1749744639064,-2359.14981361,0.00023934,2]
[365523390,1749744639073,-500.0,0.0002396,2]
[365523391,1749744639083,-500.0,0.0002396,2]
[365523392,1749744639092,-500.0,0.0002396,2]
[365523393,1749744639102,-500.0,0.0002396,2]
[365523394,1749744639111,-192.8418287,0.00023973,2]
[365523395,1749744639122,-500.0,0.00023973,2]
[365523396,1749744639131,-500.0,0.00023973,2]
[365523397,1749744639141,-500.0,0.00023973,2]
[365523398,1749744639150,-500.0,0.00023973,2]
[365523399,1749744639159,-500.0,0.00023973,2]
[365523400,1749744639169,-500.0,0.00023973,2]
[365523401,1749744639178,-507.66297015,0.00023973,2]
[365523402,1749744639187,-500.0,0.00023973,2]
[365523403,1749744639197,-500.0,0.00023973,2]
[365523404,1749744639207,-500.0,0.00023973,2]
[365523405,1749744639216,-500.0,0.00023973,2]
[365523406,1749744639226,-500.0,0.00023973,2]
[365523407,1749744639236,-500.0,0.00023973,2]
[365523408,1749744639246,-500.0,0.00023973,2]
[365523409,1749744639256,-500.0,0.00023973,2]
[365523410,1749744639265,-500.0,0.00023973,2]
[365523411,1749744639275,-500.0,0.00023973,2]
[365523412,1749744639284,-500.81351494,0.00023973,2]
[365523413,1749744639294,-600.0,0.00023973,2]
[365523414,1749744639303,-500.0,0.00023973,2]
[365523415,1749744639313,-500.0,0.00023973,2]
[365523416,1749744639323,-421.21542315,0.00023973,2]
[365523417,1749744639333,-500.0,0.00023973,2]
[365523418,1749744639343,-500.0,0.00023973,2]
[365523419,1749744639353,-500.0,0.00023973,2]
[365523420,1749744639362,-500.0,0.00023973,2]
[365523421,1749744639372,-500.0,0.00023973,2]
[365523422,1749744639381,-500.0,0.00023973,2]
[365523423,1749744639391,-500.0,0.00023973,2]
[365523424,1749744639400,-500.0,0.00023973,2]
[365523425,1749744639410,-200.0,0.00023999,2]
[365523426,1749744639419,-598460.67650268,0.00023999,15]
[365523430,1749744639686,-460.0,0.00021095,4]
[365523431,1749744639696,-160.0,0.000234,2]
[365523432,1749744639705,-835.15920933,0.000234,2]
[365523433,1749744639715,-202221.13350482,0.00023999,15]
[365523434,1749744639724,-151.0,0.00023999,7]
[365523435,1749744639734,-151.0,0.00023999,7]
[365523436,1749744639743,-151.0,0.00023999,7]
[365523437,1749744639758,-1517.476952,0.00023999,2]
[365523438,1749744639776,-1517.476952,0.00023999,2]
[365523439,1749744639785,-581.557841,0.00023999,7]
[365523440,1749744639794,-581.557841,0.00023999,7]
[365523441,1749744639804,-109285.24043412,0.00024,30]
[365523442,1749744639813,-1360.51386747,0.00024,30]
[365523443,1749744639823,-9029.0,0.00024,2]
[365523444,1749744639832,-7485.0,0.00024,10]
[365523445,1749744639841,-13693.0,0.00024,10]
[365523446,1749744639850,-167.0,0.00024,2]
[365523447,1749744639860,-10000.00006576,0.00024,5]
[365523448,1749744639869,-19197.14026024,0.00024,2]
[365523449,1749744639878,-6751.35812125,0.00024,2]
[365523450,1749744639887,-122267.20705037,0.00024,30]
[365523451,1749744639897,-24380.87049683,0.00024,30]
[365523452,1749744639907,-500.0,0.00024,2]
[365523453,1749744639915,-1734.0,0.00024,2]
[365523454,1749744639925,-187346.89782526,0.00024,35]
[365523455,1749744639935,-91479.59365358,0.00024,2]
[365523456,1749744639945,-100000.0,0.00024,20]
[365523458,1749744639954,-192707.02916876,0.00024,3]
[365523488,1749744640242,-8637.08000005,0.00024,3]
[365523627,1749744691109,200.0,0.00023835,120]
[365523629,1749744811304,200.0,0.00023431,120]
[365523634,1749744871357,200.0,0.00023087,120]
[365523636,1749744931284,200.0,0.00022905,120]
[365523656,1749744991219,200.0,0.00023251,120]
[365523657,1749745051023,200.0,0.00023515,120]
[365523658,1749745111061,200.0,0.00023066,120]
[365523659,1749745118776,3000.0,0.00017999,2]
[365523667,1749745351880,200.0,0.00023185,120]
[365523670,1749745411623,200.0,0.00024637,120]
[365523683,1749745471166,200.0,0.00023795,120]
[365523687,1749745504487,166.038306,0.00013699,2]
[365523689,1749745591347,200.0,0.00023295,120]
[365523691,1749745724873,163.595294,0.00024935,120]
[365523694,1749745760690,13842.5286278,0.00016444,2]
[365523696,1749745771574,200.0,0.00024419,120]
[365523707,1749745831064,200.0,0.00024029,120]
[365523845,1749745838067,-1153.81665609,0.00019,2]
[365523846,1749745838077,-244.942062,0.00019401,2]
[365523847,1749745838087,-2261.1213057,0.00019417,2]
[365523848,1749745838097,-300.0,0.00019427,2]
[365523849,1749745838107,-1200.0,0.00019427,2]
[365523850,1749745838116,-300.0,0.00019428,2]
[365523851,1749745838126,-300.0,0.00019428,2]
[365523852,1749745838136,-300.0,0.00019428,2]
[365523853,1749745838146,-300.0,0.00019428,2]
[365523854,1749745838157,-24900.0,0.00019429,2]
[365523855,1749745838167,-500.0,0.00019719,2]
[365523856,1749745838178,-287.34577963,0.00019719,2]
[365523857,1749745838188,-500.0,0.00019719,2]
[365523858,1749745838199,-250.83302763,0.00019719,2]
[365523859,1749745838209,-500.0,0.00019719,2]
[365523860,1749745838218,-500.0,0.00019719,2]
[365523861,1749745838228,-219.96618265,0.00019719,2]
[365523862,1749745838239,-500.0,0.00019719,2]
[365523863,1749745838248,-500.0,0.00019719,2]
[365523864,1749745838258,-500.0,0.00019719,2]
[365523865,1749745838267,-500.0,0.00019719,2]
[365523866,1749745838277,-500.0,0.00019719,2]
[365523867,1749745838286,-500.0,0.00019719,2]
[365523869,1749745838295,-500.0,0.00019719,2]
[365523871,1749745838305,-500.0,0.00019719,2]
[365523872,1749745838315,-617.85453659,0.00019719,2]
[365523873,1749745838324,-299.91113061,0.00019719,2]
[365523874,1749745838334,-500.0,0.00019719,2]
[365523875,1749745838343,-500.0,0.00019719,2]
[365523876,1749745838352,-400.55371975,0.00019719,2]
[365523877,1749745838362,-500.0,0.00019719,2]
[365523878,1749745838371,-500.0,0.00019719,2]
[365523879,1749745838381,-500.0,0.00019719,2]
[365523880,1749745838391,-316.37710623,0.00019719,2]
[365523881,1749745838401,-500.0,0.00019719,2]
[365523882,1749745838410,-500.0,0.00019719,2]
[365523883,1749745838420,-500.0,0.00019719,2]
[365523884,1749745838431,-500.0,0.00019719,2]
[365523885,1749745838440,-500.0,0.00019719,2]
[365523886,1749745838450,-158.62919808,0.0001972,2]
[365523887,1749745838460,-30133.40931561,0.0001972,2]
[365523888,1749745838472,-6797.58449335,0.0001972,2]
[365523889,1749745838489,-13069.00619104,0.0001972,2]
[365523890,1749745838498,-309.8678463,0.00019821,2]
[365523891,1749745838508,-293.0281551,0.000199,2]
[365523892,1749745838517,-2958.09251742,0.0002,2]
[365523893,1749745838527,-415.38838893,0.00020064,2]
[365523894,1749745838537,-21953.1831602,0.00020077,2]
[365523895,1749745838547,-500.0,0.00020164,2]
[365523896,1749745838557,-183.623,0.00020447,2]
[365523897,1749745838567,-500.0,0.000207,2]
[365523898,1749745838577,-1554.64045538,0.000209,4]
[365523899,1749745838587,-415.38838892,0.0002093,2]
[365523900,1749745838597,-166.038306,0.00020951,2]
[365523901,1749745838606,-500.0,0.00021,2]
[365523902,1749745838615,-446.20479493,0.00021,2]
[365523903,1749745838626,-162.77654847,0.00021,2]
[365523904,1749745838636,-500.0,0.00021,2]
[365523905,1749745838645,-500.0,0.00021,2]
[365523906,1749745838655,-153.98631589,0.00021,2]
[365523907,1749745838664,-500.0,0.00021,2]
[365523908,1749745838674,-256.20587459,0.00021,2]
[365523909,1749745838686,-950.0,0.00021021,3]
[365523910,1749745838695,-951.0,0.00021021,3]
[365523911,1749745838704,-950.0,0.00021021,3]
[365523912,1749745838713,-950.0,0.00021021,3]
[365523913,1749745838723,-950.0,0.00021021,3]
[365523914,1749745838733,-1554.64045528,0.00021038,4]
[365523915,1749745838743,-779.91,0.00021085,10]
[365523916,1749745838752,-357.42,0.00021085,3]
[365523917,1749745838762,-601.51963669,0.00021095,4]
[365523918,1749745838771,-460.0,0.00021095,4]
[365523919,1749745838781,-460.0,0.00021095,4]
[365523920,1749745838791,-460.0,0.00021095,4]
[365523921,1749745838800,-460.0,0.00021095,4]
[365523922,1749745838810,-460.0,0.00021095,4]
[365523923,1749745838819,-460.0,0.00021095,2]
[365523924,1749745838828,-308.91929663,0.00021095,4]
[365523925,1749745838838,-606.89,0.00021095,4]
[365523926,1749745838847,-460.0,0.00021095,4]
[365523927,1749745838856,-460.0,0.00021095,4]
[365523928,1749745838866,-527.23,0.00021095,4]
[365523929,1749745838875,-460.0,0.00021095,4]
[365523930,1749745838883,-460.0,0.00021095,4]
[365523931,1749745838893,-460.0,0.00021095,4]
[365523932,1749745838901,-637.3,0.00021095,4]
[365523933,1749745838911,-460.0,0.00021095,4]
[365523934,1749745838920,-460.0,0.00021095,4]
[365523935,1749745838932,-460.0,0.00021095,4]
[365523936,1749745838941,-460.0,0.00021095,4]
[365523937,1749745838951,-270.0,0.00021095,4]
[365523938,1749745838961,-460.0,0.00021095,4]
[365523939,1749745838970,-350.0,0.00021095,2]
[365523940,1749745838981,-310.83150042,0.00021095,4]
[365523941,1749745838990,-460.0,0.00021095,4]
[365523942,1749745838999,-151.0,0.00021095,2]
[365523943,1749745839009,-460.0,0.00021095,4]
[365523944,1749745839019,-460.0,0.00021095,4]
[365523945,1749745839028,-460.0,0.00021095,4]
[365523946,1749745839037,-610.77,0.00021095,4]
[365523947,1749745839047,-465.96,0.00021095,4]
[365523948,1749745839056,-188.0,0.00021095,2]
[365523949,1749745839065,-726.62,0.00021095,4]
[365523950,1749745839074,-846.41,0.00021095,4]
[365523951,1749745839083,-460.0,0.00021095,4]
[365523952,1749745839092,-522.54,0.00021095,4]
[365523953,1749745839101,-420.0,0.00021166,2]
[365523954,1749745839111,-420.0,0.00021167,2]
[365523955,1749745839120,-500.0,0.0002117,2]
[365523956,1749745839130,-1554.64045528,0.00021176,4]
[365523957,1749745839139,-1554.64045528,0.00021314,5]
[365523958,1749745839149,-460.0,0.00021369,4]
[365523959,1749745839161,-460.0,0.00021369,4]
[365523960,1749745839169,-460.0,0.00021369,2]
[365523961,1749745839179,-606.89,0.00021369,4]
[365523962,1749745839189,-460.0,0.00021369,4]
[365523963,1749745839198,-527.23,0.00021369,4]
[365523964,1749745839210,-460.0,0.00021369,4]
[365523965,1749745839219,-460.0,0.00021369,4]
[365523966,1749745839228,-594.61449335,0.00021369,4]
[365523967,1749745839239,-637.3,0.00021369,4]
[365523968,1749745839249,-460.0,0.00021369,4]
[365523969,1749745839258,-460.0,0.00021369,4]
[365523970,1749745839267,-350.0,0.00021369,2]
[365523971,1749745839277,-460.0,0.00021369,4]
[365523972,1749745839286,-460.0,0.00021369,4]
[365523973,1749745839295,-460.0,0.00021369,4]
[365523974,1749745839304,-460.0,0.00021369,4]
[365523975,1749745839313,-610.77,0.00021369,4]
[365523976,1749745839323,-726.62,0.00021369,4]
[365523977,1749745839333,-846.41,0.00021369,4]
[365523978,1749745839343,-460.0,0.00021369,4]
[365523979,1749745839353,-522.54,0.00021369,4]
[365523980,1749745839363,-1554.64045528,0.00021452,5]
[365523981,1749745839373,-1054.3117748,0.00021452,2]
[365523982,1749745839382,-176.29134077,0.00021548,2]
[365523983,1749745839391,-1554.64045528,0.0002159,5]
[365523984,1749745839400,-460.0,0.00021643,4]
[365523985,1749745839411,-460.0,0.00021643,4]
[365523986,1749745839420,-460.0,0.00021643,2]
[365523987,1749745839430,-606.89,0.00021643,4]
[365523988,1749745839440,-460.0,0.00021643,4]
[365523989,1749745839449,-527.23,0.00021643,4]
[365523990,1749745839459,-460.0,0.00021643,4]
[365523991,1749745839469,-460.0,0.00021643,4]
[365523992,1749745839479,-637.3,0.00021643,4]
[365523993,1749745839489,-460.0,0.00021643,4]
[365523994,1749745839499,-460.0,0.00021643,4]
[365523995,1749745839508,-460.0,0.00021643,4]
[365523996,1749745839517,-460.0,0.00021643,4]
[365523998,1749745839634,-460.0,0.00021643,4]
[365523999,1749745839645,-460.0,0.00021643,4]
[365524000,1749745839655,-610.77,0.00021643,4]
[365524002,1749745839664,-726.62,0.00021643,4]
[365524003,1749745839674,-846.41,0.00021643,4]
[365524004,1749745839685,-460.0,0.00021643,4]
[365524005,1749745839695,-522.54,0.00021643,4]
[365524006,1749745839704,-1014.94680306,0.00021695,2]
[365524007,1749745839714,-1000.0,0.00021718,2]
[365524008,1749745839723,-1554.64045528,0.00021728,5]
[365524009,1749745839732,-415.38838892,0.00021795,2]
[365524010,1749745839742,-500.0,0.0002182,2]
[365524011,1749745839751,-391.11297434,0.0002185,2]
[365524012,1749745839761,-1554.64045528,0.00021866,6]
[365524013,1749745839771,-1105.82,0.00021866,2]
[365524014,1749745839780,-334.93752469,0.00021917,4]
[365524015,1749745839790,-282.66,0.00021917,4]
[365524016,1749745839799,-460.0,0.00021917,2]
[365524017,1749745839809,-606.89,0.00021917,4]
[365524018,1749745839818,-460.0,0.00021917,4]
[365524019,1749745839828,-527.23,0.00021917,4]
[365524020,1749745839838,-460.0,0.00021917,4]
[365524021,1749745839849,-460.0,0.00021917,4]
[365524022,1749745839859,-637.3,0.00021917,4]
[365524023,1749745839869,-460.0,0.00021917,4]
[365524024,1749745839879,-460.0,0.00021917,4]
[365524025,1749745839888,-460.0,0.00021917,4]
[365524026,1749745839898,-460.0,0.00021917,4]
[365524027,1749745839907,-610.77,0.00021917,4]
[365524028,1749745839917,-726.62,0.00021917,4]
[365524029,1749745839927,-846.41,0.00021917,4]
[365524030,1749745839939,-460.0,0.00021917,4]
[365524031,1749745839949,-522.54,0.00021917,4]
[365524032,1749745839959,-500.0,0.00021999,2]
[365524033,1749745839970,-160.0,0.00021999,2]
[365524034,1749745839979,-500.0,0.00022,2]
[365524035,1749745839990,-500.0,0.00022,2]
[365524036,1749745839999,-489.0700254,0.00022,2]
[365524037,1749745840009,-500.0,0.00022,2]
[365524038,1749745840019,-500.0,0.00022,2]
[365524039,1749745840029,-500.0,0.00022,2]
[365524040,1749745840039,-500.0,0.00022,2]
[365524041,1749745840049,-500.0,0.00022,2]
[365524042,1749745840058,-500.0,0.00022,2]
[365524043,1749745840068,-500.0,0.00022,2]
[365524044,1749745840078,-500.0,0.00022,2]
[365524045,1749745840087,-500.0,0.00022,2]
[365524046,1749745840097,-500.0,0.00022,2]
[365524047,1749745840107,-500.0,0.00022,2]
[365524048,1749745840116,-500.0,0.00022,2]
[365524049,1749745840125,-167.0,0.00022,2]
[365524050,1749745840135,-298821.90048,0.00022001,2]
[365524051,1749745840145,-11862.37599647,0.00022002,2]
[365524052,1749745840156,-160.0,0.00022002,2]
[365524053,1749745840167,-835.15920933,0.00022002,2]
[365524054,1749745840176,-1554.64045528,0.00022003,6]
[365524055,1749745840187,-1554.64045528,0.00022141,6]
[365524056,1749745840198,-460.0,0.00022191,2]
[365524058,1749745840207,-606.89,0.00022191,4]
[365524060,1749745840216,-460.0,0.00022191,4]
[365524062,1749745840225,-527.23,0.00022191,4]